bitfinex-derivatives/quotes_BNBF0:USTF0_20250316
["timestamp","ask_amount","ask_price","bid_price","bid_amount"]
[1742153887269,2.71702984,599.71,598.04,0.33442579]
[1742153887465,2.51575315,599.64,598.04,0.33442579]
[1742153887667,0.60880838,599.63,598.04,0.33442579]
[1742153887867,0.60881394,599.62,598.04,0.33442579]
[1742153888068,0.60881951,599.61,598.04,0.33442579]
[1742153888367,0.27526937,599.6,598.05,0.30697485]
[1742153888563,0.27526937,599.6,598.07,0.33440901]
[1742153889372,0.27526937,599.6,598.08,0.3069572]
[1742153890174,0.27526937,599.6,598.1,0.33439224]
[1742153891074,0.33356126,599.59,598.1,0.33439224]
[1742153891274,0.27526937,599.58,598.1,0.33439224]
[1742153891475,0.33357239,599.57,598.1,0.33439224]
[1742153891667,0.27526937,599.56,598.1,0.33439224]
[1742153893573,0.27526937,599.56,598.11,0.557]
[1742153893775,0.27526937,599.56,598.12,0.33438106]
[1742153897584,0.33358352,599.55,598.12,0.33438106]
[1742153897780,0.27526937,599.54,598.12,0.33438106]
[1742153897979,0.33359464,599.53,598.12,0.33438106]
[1742153898183,0.27526937,599.52,598.12,0.33438106]
[1742153898381,0.33360577,599.51,598.12,0.33438106]
[1742153898585,0.27526937,599.5,598.12,0.33438106]
[1742153898789,0.3336169,599.49,598.12,0.33438106]
[1742153898986,0.27526937,599.48,598.12,0.33438106]
[1742153899786,0.33362803,599.47,598.12,0.33438106]
[1742153899986,0.27526937,599.46,598.12,0.33438106]
[1742153902387,0.33363916,599.45,598.12,0.33438106]
[1742153902587,0.27526937,599.44,598.12,0.33438106]
[1742153902787,0.3336503,599.43,598.12,0.33438106]
[1742153902988,0.27526937,599.42,598.12,0.33438106]
[1742153903189,0.33366143,599.41,598.12,0.33438106]
[1742153903490,0.27526937,599.4,598.12,0.33438106]
[1742153903795,0.33367256,599.39,598.12,0.33438106]
[1742153903989,0.27526937,599.38,598.12,0.33438106]
[1742153904287,0.3336837,599.37,598.12,0.33438106]
[1742153904490,0.27526937,599.36,598.12,0.33438106]
[1742153904891,0.33369483,599.35,598.12,0.33438106]
[1742153905084,0.27526937,599.34,598.12,0.33438106]
[1742153906490,0.33370597,599.33,598.12,0.33438106]
[1742153906690,0.27526937,599.32,598.12,0.33438106]
[1742153907090,0.6089809,599.32,598.12,0.33438106]
[1742153907285,0.27526937,599.31,598.12,0.33438106]
[1742153931712,0.27526937,599.64,598.12,0.33438106]
[1742153931914,0.27526937,599.63,598.13,0.30694569]
[1742153932115,0.27526937,599.64,598.15,0.33436428]
[1742153932313,0.27526937,599.63,598.15,0.33436428]
[1742153932514,0.27526937,599.78,598.15,0.33436428]
[1742153932814,0.60873053,599.77,598.15,0.33436428]
[1742153933115,0.60860399,599.76,598.15,0.33436428]
[1742153933414,0.27513727,599.75,598.16,0.30692181]
[1742153933814,0.27513727,599.75,598.15,0.33436428]
[1742153933815,0.27515874,599.74,598.17,0.30690913]
[1742153934019,0.27515874,599.75,598.16,0.30690913]
[1742153934314,0.27515874,599.74,598.17,0.30690913]
[1742153934511,0.27515874,599.74,598.15,0.33436428]
[1742153934512,0.27515874,599.75,598.16,0.30690913]
[1742153934712,0.27515874,599.74,598.17,0.30690913]
[1742153934908,0.33346672,599.76,598.15,0.33436428]
[1742153934909,0.27515874,599.73,598.18,0.30690913]
[1742153935108,3.87976602,599.75,598.16,0.30690913]
[1742153935314,3.87976602,599.74,598.17,0.30690913]
[1742153935515,3.87976602,599.73,598.18,0.30690913]
[1742153935711,0.27515874,599.72,598.16,0.30690913]
[1742153935910,2.71604064,599.72,598.17,0.30690913]
[1742153936116,0.27515874,599.71,598.16,0.30690913]
[1742153937416,0.27515874,599.75,598.16,0.30690913]
[1742153937615,0.33346672,599.76,598.18,0.33434752]
[1742153937616,0.27515874,599.74,598.18,0.33434752]
[1742153937812,0.27515874,599.73,598.19,0.30690913]
[1742153938013,0.27515874,599.75,598.2,0.33433634]
[1742153938212,0.60863658,599.74,598.21,0.30690913]
[1742153938513,0.27515874,599.73,598.22,0.33432516]
[1742153938712,0.33348896,599.72,598.22,0.33432516]
[1742153938913,0.27515874,599.71,598.22,0.33432516]
[1742153939112,0.33350008,599.7,598.22,0.33432516]
[1742153939317,0.27515874,599.69,598.22,0.33432516]
[1742153939514,0.3335112,599.68,598.22,0.33432516]
[1742153939711,0.27515874,599.67,598.22,0.33432516]
[1742153939918,0.33352232,599.66,598.22,0.33432516]
[1742153940319,0.27545674,599.65,598.22,0.33432516]
[1742153940818,0.33353345,599.64,598.22,0.33432516]
[1742153941019,0.27545674,599.63,598.22,0.33432516]
[1742153941219,0.33354457,599.62,598.22,0.33432516]
[1742153941520,0.27545674,599.61,598.22,0.33432516]
[1742153941719,0.3335557,599.6,598.22,0.33432516]
[1742153941914,0.27545674,599.59,598.22,0.33432516]
[1742153942320,0.33356683,599.58,598.22,0.33432516]
[1742153942520,0.27545674,599.57,598.22,0.33432516]
[1742153942819,0.33357795,599.56,598.22,0.33432516]
[1742153943023,0.27545674,599.55,598.22,0.33432516]
[1742153943217,0.60904026,599.55,598.22,0.33432516]
[1742153943418,0.27549154,599.54,598.22,0.33432516]
[1742153947026,0.2755202,599.53,598.22,0.33432516]
[1742153947227,0.2755202,599.52,598.22,0.33432516]
[1742153947428,0.2755202,599.54,598.22,0.33432516]
[1742153947727,0.2755202,599.53,598.22,0.33432516]
[1742153947925,0.2755202,599.54,598.22,0.33432516]
[1742153948122,0.2755202,599.53,598.22,0.33432516]
[1742153948325,0.2755202,599.54,598.22,0.33432516]
[1742153950323,0.2755202,599.54,598.23,0.761]
[1742153951122,0.2755202,599.54,598.23,1.09531957]
[1742153951323,0.2755202,599.54,598.24,0.33431398]
[1742153954329,0.27585287,599.53,598.24,0.33431398]
[1742153954529,0.27585287,599.54,598.24,0.33431398]
[1742153956124,0.27585081,599.53,598.24,0.33431398]
[1742153956328,0.27585081,599.54,598.24,0.33431398]
[1742153956630,0.27585081,599.53,598.24,0.33431398]
[1742153956830,0.27585081,599.52,598.24,0.33431398]
[1742153957026,0.27585081,599.51,598.24,0.33431398]
[1742153957229,0.27585081,599.5,598.24,0.33431398]
[1742153957430,0.27585081,599.49,598.24,0.33431398]
[1742153957629,0.27585081,599.48,598.24,0.33431398]
[1742153957931,0.27585071,599.47,598.24,0.33431398]
[1742153958127,0.27585071,599.46,598.24,0.33431398]
[1742153958329,0.27585055,599.45,598.24,0.33431398]
[1742153958525,0.27585055,599.54,598.24,0.33431398]
[1742153958729,0.33358352,599.55,598.24,0.33431398]
[1742153958924,0.27585476,599.54,598.24,0.33431398]
[1742153959630,0.27585418,599.53,598.24,0.33431398]
[1742153959931,0.27585418,599.52,598.24,0.33431398]
[1742153960130,0.33358352,599.55,598.24,0.33431398]
[1742153960131,0.27585418,599.54,598.24,0.33431398]
[1742153960330,0.33358352,599.55,598.24,0.33431398]
[1742153960331,0.27585418,599.53,598.24,0.33431398]
[1742153960630,0.27585418,599.52,598.24,0.33431398]
[1742153960824,0.27585418,599.54,598.24,0.33431398]
[1742153961026,0.27585418,599.53,598.24,0.33431398]
[1742153961230,0.27585418,599.54,598.24,0.33431398]
[1742153961431,0.33358352,599.55,598.24,0.33431398]
[1742153961625,0.27585016,599.54,598.24,0.33431398]
[1742153961827,0.27585016,599.54,598.25,0.30690706]
[1742153962027,0.27585016,599.54,598.26,0.33430281]
[1742153962230,0.27585016,599.54,598.27,0.30690706]
[1742153963831,0.27585016,599.54,598.29,0.33428604]
[1742153964029,0.27585016,599.54,598.3,0.30690706]
[1742153964231,0.27585016,599.54,598.32,0.33426928]
[1742153964425,0.27585016,599.54,598.33,0.30690706]
[1742153964630,0.27585016,600.09,598.35,0.33425252]
[1742153964934,0.33329444,600.07,598.36,0.30690706]
[1742153965134,0.27595107,600.06,598.38,0.33423576]
[1742153965333,0.27595107,600.06,598.39,0.30682107]
[1742153965632,0.33330555,600.05,598.4,0.33422459]
[1742153965830,0.27595107,600.04,598.4,0.33422459]
[1742153966028,0.33331666,600.03,598.4,0.33422459]
[1742153966231,0.27595107,600.02,598.41,0.30682036]
[1742153966431,0.27595107,600.01,598.42,0.33421342]
[1742153966631,0.6092844,600.0,598.43,0.30682036]
[1742153966827,0.60928995,599.99,598.44,0.33420225]
[1742153967033,0.60929551,599.98,598.45,0.30682036]
[1742153967232,0.27595107,599.97,598.45,0.30682036]
[1742153971436,0.27596163,599.97,598.54,0.33414642]
[1742153974135,0.33334444,599.98,598.54,0.33414642]
[1742153974336,0.27597264,599.97,598.54,0.33414642]
[1742153975739,0.27597264,599.97,598.54,0.82314642]
[1742153977641,0.27597264,599.97,598.55,0.30677637]
[1742153977838,0.27597264,599.97,598.56,0.33413525]
[1742153978036,0.27597264,599.97,598.57,0.30674055]
[1742153979644,0.27597264,599.97,598.59,0.33411851]
[1742153979839,0.27597264,599.97,598.6,0.30674055]
[1742153980546,0.27597264,599.97,598.62,0.33410176]
[1742153980846,0.27597264,599.97,598.63,0.30674055]
[1742153981042,0.27597264,599.97,598.64,0.3340906]
[1742153981241,0.27597264,599.97,598.65,0.30674055]
[1742153981442,0.27597264,599.97,598.66,0.33407944]
[1742153984445,0.27635217,599.92,598.68,0.33406828]
[1742153984752,0.27635217,599.97,598.69,0.30669061]
[1742153984946,0.27635217,599.96,598.7,0.33405712]
[1742153985145,0.33334444,599.98,598.71,0.30668418]
[1742153985146,0.27635217,599.97,598.71,0.30668418]
[1742153985347,0.27635217,599.96,598.72,0.33404596]
[1742153985551,0.33334444,599.98,598.73,0.30668418]
[1742153985552,0.27635217,599.97,598.73,0.30668418]
[1742153985846,0.27635217,599.96,598.74,0.3340348]
[1742153986150,0.27635217,599.95,598.74,0.3340348]
[1742153986351,0.27635217,599.97,598.74,0.3340348]
[1742153986651,0.27635782,599.96,598.74,0.3340348]
[1742153986846,0.27635782,599.97,598.74,0.3340348]
[1742153987046,0.27635782,599.96,598.74,0.3340348]
[1742153987249,0.27635782,599.97,598.74,0.3340348]
[1742153987459,0.27635782,599.96,598.74,0.3340348]
[1742153987650,0.27635782,599.97,598.74,0.3340348]
[1742153987949,0.27635782,599.96,598.74,0.3340348]
[1742153988148,0.27635782,599.97,598.74,0.3340348]
[1742153988351,0.27635782,599.96,598.74,0.3340348]
[1742153988550,0.33334444,599.98,598.74,0.3340348]
[1742153988849,0.2763908,599.97,598.74,0.3340348]
[1742153989553,0.2763908,599.97,598.74,0.32484738]
[1742153993454,0.27596737,599.96,598.74,0.32484738]
[1742153993651,0.27596737,599.97,598.74,0.32484738]
[1742153993852,0.27596737,599.96,598.74,0.32484738]
[1742153994054,0.33334444,599.98,598.74,0.32484738]
[1742153994254,0.27596958,599.97,598.74,0.32484738]
[1742154001265,0.27595675,599.96,598.74,0.32484738]
[1742154001469,0.27595675,599.95,598.74,0.32484738]
[1742154001673,0.27595675,599.97,598.74,0.32484738]
[1742154001970,0.27595675,599.96,598.74,0.32484738]
[1742154002164,0.27595675,599.95,598.74,0.32484738]
[1742154002367,0.27595675,599.94,598.74,0.32484738]
[1742154002569,0.27595675,599.93,598.74,0.32484738]
[1742154002770,0.27595675,599.97,598.74,0.32484738]
[1742154003070,0.27595675,599.96,598.74,0.32484738]
[1742154003270,0.27595675,599.97,598.75,0.30669205]
[1742154003471,0.27595675,599.96,598.76,0.33402364]
[1742154003670,0.27595675,599.97,598.76,0.33402364]
[1742154003869,0.27595675,599.96,598.76,0.33402364]
[1742154004071,0.27595675,599.97,598.76,0.33402364]
[1742154004374,0.27595675,599.96,598.76,0.33402364]
[1742154004572,0.27595675,599.97,598.77,0.586]
[1742154004771,0.27595675,599.95,598.77,0.586]
[1742154005075,0.27595675,599.94,598.78,0.30663047]
[1742154005272,0.27595675,599.94,598.8,0.33400133]
[1742154005573,0.27595675,599.93,598.8,0.33400133]
[1742154005773,0.27595675,600.11,598.81,0.30660932]
[1742154005970,0.27595675,600.1,598.81,0.30660932]
[1742154006167,0.27595675,600.11,598.81,0.30660932]
[1742154006366,0.27595675,600.1,598.81,0.30660932]
[1742154006566,0.27595675,600.11,598.81,0.30660932]
[1742154006769,0.27595675,600.1,598.81,0.30660932]
[1742154007073,0.27595675,600.09,598.81,0.30660932]
[1742154007273,0.27595675,600.11,598.83,0.3339846]
[1742154007575,0.27595675,600.11,598.84,0.30660932]
[1742154008074,0.27595675,600.11,598.86,0.33396787]
[1742154008477,0.27616166,600.1,598.86,0.33396787]
[1742154008669,1.78510543,600.58,598.86,0.33396787]
[1742154008975,0.33302251,600.56,598.86,0.33396787]
[1742154009180,0.27616166,600.55,598.86,0.33396787]
[1742154009369,0.60919526,600.54,598.86,0.33396787]
[1742154009571,0.6092008,600.53,598.86,0.33396787]
[1742154009772,0.60920635,600.52,598.86,0.33396787]
[1742154009968,2.51575315,600.46,598.86,0.33396787]
[1742154010170,3.8825118,600.45,598.86,0.33396787]
[1742154010475,0.60925072,600.44,598.86,0.33396787]
[1742154010676,0.60925627,600.43,598.86,0.33396787]
[1742154010877,0.60926182,600.42,598.86,0.33396787]
[1742154011077,0.60926737,600.41,598.86,0.33396787]
[1742154011271,0.60927291,600.4,598.86,0.33396787]
[1742154011475,0.60927846,600.39,598.86,0.33396787]
[1742154011670,0.60928401,600.38,598.86,0.33396787]
[1742154011871,0.27613954,600.37,598.86,0.33396787]
[1742154013378,0.27613954,600.36,598.86,0.33396787]
[1742154013580,0.33312235,600.38,598.86,0.33396787]
[1742154013778,0.27605624,600.37,598.86,0.33396787]
[1742154013973,0.33313345,600.36,598.86,0.33396787]
[1742154014174,0.27605624,600.35,598.86,0.33396787]
[1742154014377,2.51575315,600.33,598.86,0.33396787]
[1742154014579,4.21556862,600.32,598.86,0.33396787]
[1742154014774,0.27606283,600.31,598.86,0.33396787]
[1742154014975,0.33316674,600.3,598.86,0.33396787]
[1742154015178,0.27606283,600.29,598.86,0.33396787]
[1742154017179,0.27606283,600.29,598.87,0.30661024]
[1742154017379,0.27606283,600.29,598.88,0.33395671]
[1742154020285,0.27606283,600.29,598.89,0.3065707]
[1742154020986,0.27606283,600.29,598.91,0.33393999]
[1742154021487,0.27606283,600.29,598.92,0.30655531]
[1742154022480,0.27606283,600.29,598.94,0.33392326]
[1742154022687,0.27606283,600.29,598.95,0.30655531]
[1742154022886,0.27606283,600.29,598.97,0.33390653]
[1742154023087,0.27606283,600.29,598.98,0.30655531]
[1742154023287,0.27606283,600.29,599.0,0.33388981]
[1742154023487,0.27606283,600.29,599.01,0.30655531]
[1742154023690,0.27606283,600.29,599.02,0.33387866]
[1742154023886,0.27606283,600.29,599.03,0.30655531]
[1742154024290,0.27606283,600.29,599.05,0.33386194]
[1742154024486,0.27606283,600.29,599.06,0.30655531]
[1742154024685,0.27606283,600.29,599.08,0.33384522]
[1742154024991,0.27606283,600.29,599.09,0.30655531]
[1742154025185,3.89076485,600.56,599.11,0.33382851]
[1742154025392,0.27606283,600.55,599.12,0.30655531]
[1742154025590,0.27606283,600.55,599.12,0.89855531]
[1742154025792,0.27606283,600.55,599.14,0.33381179]
[1742154026091,3.00294366,600.55,599.15,0.30655531]
[1742154026292,3.89076485,600.54,599.16,0.33380065]
[1742154026492,0.27606283,600.53,599.16,0.33380065]
[1742154027793,3.00294366,600.53,599.16,0.33380065]
[1742154027993,3.89076485,600.52,599.16,0.33380065]
[1742154028288,0.27606283,600.51,599.16,0.33380065]
[1742154029090,0.27606283,600.52,599.16,0.33380065]
[1742154029295,0.27606283,600.51,599.16,0.33380065]
[1742154029497,0.27606283,600.5,599.16,0.33380065]
[1742154029790,0.27606283,600.49,599.16,0.33380065]
[1742154029995,0.27606283,600.52,599.16,0.33380065]
[1742154030191,0.27606283,600.51,599.16,0.33380065]
[1742154030396,0.27606283,600.52,599.16,0.33380065]
[1742154032699,0.2765384,600.51,599.16,0.33380065]
[1742154032901,0.2765384,600.5,599.16,0.33380065]
[1742154033094,0.2765384,600.52,599.16,0.33380065]
[1742154033293,0.2765384,600.49,599.16,0.33380065]
[1742154033495,0.2765384,600.48,599.16,0.33380065]
[1742154033699,0.2765384,600.52,599.16,0.33380065]
[1742154033900,0.2765384,600.51,599.16,0.33380065]
[1742154034095,0.2765384,600.5,599.16,0.33380065]
[1742154034301,0.2765384,600.49,599.16,0.33380065]
[1742154034601,0.2765384,600.48,599.16,0.33380065]
[1742154034796,0.2765384,600.52,599.16,0.33380065]
[1742154039202,0.27671533,600.51,599.16,0.33380065]
[1742154039501,0.33303914,600.53,599.16,0.33380065]
[1742154039502,0.27671533,600.52,599.16,0.33380065]
[1742154039704,0.27671533,600.51,599.16,0.33380065]
[1742154039903,0.27671533,600.5,599.16,0.33380065]
[1742154040103,0.27671533,600.49,599.16,0.33380065]
[1742154040303,0.27671533,600.48,599.16,0.33380065]
[1742154040502,0.60978775,600.47,599.16,0.33380065]
[1742154040698,0.27671533,600.46,599.16,0.33380065]
[1742154040902,0.27671533,600.45,599.16,0.33380065]
[1742154041102,0.27671533,600.44,599.16,0.33380065]
[1742154041304,0.27671533,600.43,599.16,0.33380065]
[1742154041499,0.27671533,600.42,599.16,0.33380065]
[1742154041698,0.27671533,600.41,599.16,0.33380065]
[1742154041903,0.27671533,600.4,599.16,0.33380065]
[1742154042203,0.60983213,600.39,599.16,0.33380065]
[1742154042403,0.27671533,600.38,599.16,0.33380065]
[1742154042603,0.27671533,600.37,599.16,0.33380065]
[1742154042805,0.27671533,600.36,599.16,0.33380065]
[1742154043103,0.27671533,600.35,599.16,0.33380065]
[1742154043305,0.27671533,600.34,599.16,0.33380065]
[1742154043498,0.27671533,600.33,599.16,0.33380065]
[1742154043701,0.27671533,600.32,599.16,0.33380065]
[1742154043896,0.27671533,600.31,599.16,0.33380065]
[1742154044100,0.27671533,600.3,599.16,0.33380065]
[1742154044305,0.27671533,600.29,599.16,0.33380065]
[1742154044498,0.27671533,600.28,599.16,0.33380065]
[1742154044698,0.60989873,600.27,599.16,0.33380065]
[1742154044901,0.27671533,600.26,599.16,0.33380065]
[1742154045198,0.27671533,600.25,599.16,0.33380065]
[1742154045399,0.27671533,600.24,599.16,0.33380065]
[1742154045699,0.27671533,600.23,599.16,0.33380065]
[1742154045903,0.27671533,600.22,599.16,0.33380065]
[1742154046105,0.27671533,600.26,599.12,0.592]
[1742154046403,0.3331945,600.25,599.12,0.592]
[1742154046604,0.27667183,600.24,599.12,0.592]
[1742154047504,0.60987188,600.24,599.12,0.592]
[1742154047706,0.27667183,600.23,599.12,0.592]
[1742154048206,0.33320005,600.24,599.12,0.592]
[1742154048408,0.27666768,600.23,599.12,0.592]
[1742154052002,0.33320005,600.24,599.12,0.592]
[1742154052207,0.27661404,600.23,599.12,0.592]
[1742154053603,0.27659205,600.22,599.12,0.592]
[1742154053806,0.27659205,600.23,599.12,0.592]
[1742154055712,0.33320005,600.24,599.12,0.592]
[1742154055913,0.27659277,600.23,599.12,0.592]
[1742154056113,0.60980392,600.22,599.12,0.592]
[1742154056306,0.60980947,600.21,599.12,0.592]
[1742154056509,0.60981502,600.2,599.12,0.592]
[1742154056713,0.33322781,600.19,599.12,0.592]
[1742154056912,0.27657214,600.18,599.12,0.592]
[1742154057112,0.33323891,600.17,599.12,0.592]
[1742154057305,0.27657214,600.16,599.12,0.592]
[1742154057509,0.33325002,600.15,599.12,0.592]
[1742154057712,0.27652363,600.14,599.12,0.592]
[1742154057905,0.33326112,600.13,599.12,0.592]
[1742154058105,0.27652363,600.12,599.12,0.592]
[1742154059310,0.33326112,600.13,599.12,0.592]
[1742154059513,0.27636408,600.12,599.12,0.592]
[1742154061110,0.27635287,600.11,599.12,0.592]
[1742154061512,0.27635287,600.1,599.12,0.592]
[1742154061707,0.27635287,600.12,599.12,0.592]
[1742154061912,0.27635287,600.11,599.12,0.592]
[1742154062214,0.27635287,600.1,599.12,0.592]
[1742154062413,0.27635287,600.12,599.12,0.592]
[1742154062713,0.27635652,600.11,599.12,0.592]
[1742154062911,0.27635652,600.1,599.12,0.592]
[1742154063112,0.27635652,600.12,599.12,0.592]
[1742154063306,0.27635652,600.11,599.12,0.592]
[1742154063505,0.27635652,600.12,599.12,0.592]
[1742154063705,0.27635652,600.11,599.12,0.592]
[1742154063913,0.27635652,600.1,599.12,0.592]
[1742154064112,0.27635652,600.12,599.12,0.592]
[1742154064321,0.27635652,600.11,599.12,0.592]
[1742154064619,0.27635652,600.1,599.12,0.592]
[1742154064820,0.27635652,600.09,599.12,0.592]
[1742154065022,0.27635652,600.12,599.12,0.592]
[1742154065220,0.33326112,600.13,599.12,0.592]
[1742154065221,0.27635652,600.11,599.12,0.592]
[1742154065417,0.27635652,600.1,599.12,0.592]
[1742154065621,0.33326112,600.13,599.12,0.592]
[1742154065622,0.27635652,600.09,599.12,0.592]
[1742154065821,0.27635652,600.12,599.12,0.592]
[1742154066620,0.27635652,600.32,599.12,0.592]
[1742154066820,0.27635652,600.31,599.12,0.592]
[1742154067020,0.27635652,600.32,599.12,0.592]
[1742154067220,0.27635652,600.31,599.12,0.592]
[1742154067422,0.27635652,600.32,599.12,0.592]
[1742154067722,0.27635652,600.31,599.12,0.592]
[1742154067922,0.27641447,600.3,599.12,0.592]
[1742154068121,1.79102851,600.62,599.12,0.592]
[1742154068324,0.33300033,600.6,599.12,0.592]
[1742154068518,0.27641447,600.59,599.12,0.592]
[1742154068724,0.60942589,600.58,599.12,0.592]
[1742154068923,0.60943143,600.57,599.12,0.592]
[1742154069123,0.60943698,600.56,599.12,0.592]
[1742154069324,0.60944252,600.55,599.12,0.592]
[1742154069524,0.60944807,600.54,599.12,0.592]
[1742154069725,0.27641447,600.53,599.12,0.592]
[1742154069924,0.33304469,600.52,599.12,0.592]
[1742154070127,0.27641447,600.51,599.12,0.592]
[1742154070426,0.33305578,600.5,599.13,0.33381736]
[1742154070628,0.27641447,600.49,599.13,0.33381736]
[1742154071425,0.27641447,600.48,599.13,0.33381736]
[1742154071625,0.33305578,600.5,599.13,0.33381736]
[1742154071821,0.27647984,600.49,599.13,0.33381736]
[1742154072021,0.33305578,600.5,599.13,0.33381736]
[1742154072022,0.27647984,600.48,599.13,0.33381736]
[1742154072223,0.27647984,600.47,599.13,0.33381736]
[1742154072425,0.27647984,600.46,599.13,0.33381736]
[1742154072628,0.27647984,600.49,599.13,0.33381736]
[1742154072928,0.27647984,600.48,599.13,0.33381736]
[1742154073123,0.27647984,600.49,599.13,0.33381736]
[1742154073323,0.27647984,600.48,599.13,0.33381736]
[1742154073828,0.27647984,600.47,599.13,0.33381736]
[1742154074022,0.27647984,600.49,599.13,0.33381736]
[1742154074227,0.27647984,600.48,599.14,0.30648543]
[1742154074423,0.27647984,600.49,599.15,0.33380622]
[1742154074622,0.27647984,600.48,599.16,0.30648543]
[1742154074822,0.27647984,600.49,599.17,0.33379508]
[1742154075027,0.27647984,600.48,599.17,0.33379508]
[1742154075228,0.27647984,600.49,599.17,0.33379508]
[1742154075528,0.27647984,600.48,599.17,0.33379508]
[1742154075727,0.27647984,600.49,599.17,0.33379508]
[1742154075928,0.27647984,600.48,599.17,0.33379508]
[1742154076123,0.27647984,600.49,599.17,0.33379508]
[1742154076323,0.27647984,600.48,599.17,0.33379508]
[1742154076528,0.27647984,600.49,599.17,0.33379508]
[1742154076728,0.27647984,600.48,599.17,0.33379508]
[1742154076923,0.2764943,600.47,599.17,0.33379508]
[1742154077125,0.2764943,600.49,599.17,0.33379508]
[1742154079721,3.89659043,600.49,599.17,0.33379508]
[1742154079924,0.2764943,600.48,599.18,0.30645002]
[1742154080222,0.2764943,600.48,599.19,0.33378394]
[1742154080821,3.62009613,600.49,599.19,0.33378394]
[1742154081027,3.00743194,600.48,599.19,0.33378394]
[1742154081229,3.89661516,600.47,599.19,0.33378394]
[1742154081425,0.27651903,600.46,599.19,0.33378394]
[1742154081626,0.27651903,600.46,599.2,0.704]
[1742154081926,0.27651903,600.46,599.21,0.3337728]
[1742154082523,3.62009613,600.47,599.21,0.3337728]
[1742154082728,3.00824456,600.46,599.21,0.3337728]
[1742154082923,3.89742778,600.45,599.21,0.3337728]
[1742154083123,0.27733165,600.44,599.21,0.3337728]
[1742154084224,3.00824456,600.44,599.21,0.3337728]
[1742154084427,0.27733165,600.43,599.21,0.3337728]
[1742154086331,0.27733165,600.42,599.21,0.3337728]
[1742154086529,0.27733165,600.49,599.21,0.3337728]
[1742154088034,0.27726252,600.48,599.21,0.3337728]
[1742154088331,0.27726252,600.47,599.21,0.3337728]
[1742154088531,0.27726252,600.49,599.21,0.3337728]
[1742154090032,0.27725115,600.48,599.21,0.3337728]
[1742154090225,0.27725115,600.47,599.21,0.3337728]
[1742154090428,0.27725115,600.46,599.2,0.704]
[1742154090627,0.27725115,600.45,599.2,0.704]
[1742154090829,0.27725115,600.44,599.2,0.704]
[1742154091032,3.90440275,600.76,599.2,0.704]
[1742154091232,0.27725115,600.75,599.2,0.704]
[1742154091633,0.27725115,600.74,599.2,0.704]
[1742154091933,0.27725115,600.73,599.2,0.704]
[1742154092129,0.27725115,600.75,599.2,0.704]
[1742154092332,0.27725115,600.74,599.2,0.704]
[1742154092533,0.27725115,600.73,599.2,0.704]
[1742154092735,3.00816406,600.75,599.2,0.704]
[1742154092931,3.90440275,600.74,599.2,0.704]
[1742154093133,0.27725115,600.73,599.2,0.704]
[1742154093732,0.27725115,600.74,599.2,0.704]
[1742154094836,0.27725115,601.06,599.2,0.704]
[1742154095136,0.27725115,601.05,599.2,0.704]
[1742154095435,0.27725115,601.04,599.2,0.704]
[1742154095636,0.27725115,601.03,599.2,0.704]
[1742154095836,0.27725115,601.02,599.2,0.704]
[1742154096135,0.27725115,601.01,599.2,0.704]
[1742154096337,0.27725115,601.0,599.2,0.704]
[1742154096637,0.27725115,600.99,599.2,0.704]
[1742154096835,0.27725115,600.98,599.2,0.704]
[1742154097033,0.27725115,600.97,599.2,0.704]
[1742154097234,0.27725115,601.12,599.2,0.704]
[1742154097434,0.27725115,601.11,599.21,0.30638021]
[1742154097637,0.27725115,601.1,599.21,0.30638021]
[1742154097837,0.27725115,601.09,599.21,0.30638021]
[1742154098032,0.27725115,601.08,599.21,0.30638021]
[1742154098236,0.27725115,601.07,599.21,0.30638021]
[1742154098436,0.27725115,601.06,599.21,0.30638021]
[1742154098637,0.27725115,601.05,599.21,0.30638021]
[1742154098840,0.27725115,601.04,599.21,0.30638021]
[1742154099038,0.27725115,601.03,599.21,0.30638021]
[1742154099238,0.27725115,601.02,599.21,0.30638021]
[1742154099439,0.27725115,601.1,599.21,0.30638021]
[1742154099637,3.62298608,601.12,599.21,0.30638021]
[1742154099638,0.27725115,601.09,599.21,0.30638021]
[1742154099937,0.27725115,601.08,599.21,0.30638021]
[1742154100132,0.27725115,601.07,599.21,0.30638021]
[1742154100338,0.27725115,601.06,599.21,0.30638021]
[1742154100538,0.27725115,601.05,599.21,0.30638021]
[1742154100741,0.27715651,601.04,599.22,0.30636773]
[1742154100941,0.27715651,601.03,599.21,0.30636773]
[1742154101140,0.27715651,601.02,599.22,0.30636773]
[1742154101340,0.27715651,601.01,599.21,0.30636773]
[1742154101533,0.27715651,601.0,599.22,0.30636773]
[1742154101739,0.27715651,600.99,599.23,0.30636773]
[1742154101936,0.27715651,600.98,599.2,0.99405559]
[1742154102135,0.27715651,600.97,599.21,0.30637591]
[1742154102440,3.62298608,601.08,599.2,0.704]
[1742154102638,0.27713917,601.07,599.21,0.30637284]
[1742154102841,0.27713917,601.06,599.21,0.30637284]
[1742154103036,0.27713917,601.05,599.21,0.30637284]